bitfinex/quotes_ETHUSD_20250430
["timestamp","ask_amount","ask_price","bid_price","bid_amount"]
[1746022104044,5.70627758,1752.5,1751.7,3.0]
[1746022104252,5.70613409,1752.5,1751.7,3.0]
[1746022104460,5.70825717,1751.9,1751.3,0.6536]
[1746022104753,7.32341825,1752.3,1751.6,3.0]
[1746022105052,13.13660934,1752.4,1751.7,0.6858]
[1746022105349,5.70701647,1752.3,1751.7,0.6858]
[1746022105510,5.70722468,1752.2,1751.7,0.6858]
[1746022105907,5.70747605,1752.1,1751.7,0.6858]
[1746022106111,5.68542468,1752.2,1751.7,0.6858]
[1746022106344,5.70838605,1751.9,1751.3,6.34136893]
[1746022106507,5.70795193,1752.0,1751.3,6.34136893]
[1746022106711,6.25765167,1752.1,1751.3,6.34136893]
[1746022106908,5.70796099,1752.0,1751.3,6.34136893]
[1746022107108,5.70746728,1752.1,1751.3,6.34136893]
[1746022107312,5.70732666,1752.2,1751.7,0.6858]
[1746022107548,6.25696731,1752.3,1751.7,0.6858]
[1746022107715,0.55,1752.2,1751.7,0.6858]
[1746022107923,5.70696731,1752.3,1751.7,0.6858]
[1746022108125,7.34883885,1752.4,1751.7,0.6858]
[1746022108310,1.6299,1752.7,1751.9,6.34136893]
[1746022108513,5.70704159,1752.3,1751.7,0.6858]
[1746022108714,5.70630267,1752.5,1751.7,4.49748]
[1746022108917,1.6128,1753.0,1752.0,0.6858]
[1746022109154,5.70559588,1752.7,1752.2,3.0]
[1746022109363,5.70485386,1752.9,1752.0,8.0638]
[1746022109515,5.70594239,1752.6,1752.0,8.0638]
[1746022109726,5.7056922,1752.7,1752.0,8.0638]
[1746022109966,5.70548658,1752.7,1752.0,8.0638]
[1746022110163,5.70595594,1752.6,1752.0,8.0638]
[1746022110374,5.70595594,1752.6,1752.0,8.87018]
[1746022110959,5.70557527,1752.7,1752.0,8.0638]
[1746022111147,5.70497802,1752.9,1752.1,3.0]
[1746022111352,2.04990445,1753.0,1752.1,9.34136893]
[1746022111353,5.70521434,1752.8,1752.1,9.34136893]
[1746022111538,5.70532987,1752.8,1752.1,9.34136893]
[1746022111745,5.70501831,1752.9,1752.1,9.34136893]
[1746022112069,2.04990445,1753.0,1752.2,0.84838414]
[1746022112365,6.14161272,1753.0,1752.3,0.6858]
[1746022112543,5.70485055,1752.9,1752.3,0.6858]
[1746022112742,0.55,1752.9,1752.3,0.6858]
[1746022112941,6.25506095,1752.9,1752.3,0.6858]
[1746022113153,10.29295808,1753.2,1752.3,0.6858]
[1746022113154,5.70435924,1753.1,1752.3,0.6858]
[1746022113461,5.70441685,1753.1,1752.3,0.6858]
[1746022113661,5.70454432,1753.0,1752.3,0.6858]
[1746022113879,13.29314948,1753.2,1752.3,0.6858]
[1746022114032,5.7038893,1753.2,1752.4,6.34136893]
[1746022114363,5.7038893,1753.2,1752.3,0.6858]
[1746022114364,5.70525623,1752.8,1752.3,0.6858]
[1746022114670,5.70562413,1752.7,1752.3,0.6858]
[1746022114867,11.41142239,1752.7,1752.3,0.6858]
[1746022115025,5.70504648,1752.9,1752.3,0.6858]
[1746022115226,3.0,1753.2,1752.4,3.0]
[1746022115227,6.1367073,1753.2,1752.4,3.0]
[1746022115427,5.70430982,1753.1,1752.5,0.3]
[1746022115679,11.41284933,1752.5,1751.9,0.6858]
[1746022115963,5.70669897,1752.4,1751.9,0.6858]
[1746022116458,6.25595303,1752.6,1752.0,6.34136893]
[1746022116676,5.70580091,1752.7,1752.1,0.63413689]
[1746022116894,5.70563736,1752.7,1752.1,0.63413689]
[1746022117189,5.7053802,1752.8,1752.1,0.63413689]
[1746022117374,5.7049483,1752.9,1752.2,0.6858]
[1746022117538,5.70606175,1752.6,1752.2,0.6858]
[1746022117876,5.70583898,1752.6,1752.2,0.6858]
[1746022121683,5.70473623,1753.0,1752.3,6.34136893]
[1746022121840,1.6103,1753.3,1752.6,6.34136893]
[1746022122188,7.35618743,1753.6,1752.9,6.34136893]
[1746022122476,5.70191692,1753.8,1752.9,6.34136893]
[1746022122675,5.70302942,1753.5,1752.9,13.71936893]
[1746022123279,5.70333325,1753.4,1752.9,13.71936893]
[1746022123458,5.70304109,1753.5,1752.9,7.378]
[1746022123653,5.70327606,1753.4,1752.9,7.378]
[1746022124046,5.70303525,1753.5,1752.9,7.378]
[1746022124382,6.12170176,1753.5,1752.9,13.71936893]
[1746022124545,3.41866651,1753.5,1752.9,13.71936893]
[1746022124753,9.12155237,1753.5,1752.9,15.15988582]
[1746022125280,9.12155237,1753.5,1752.9,7.378]
[1746022125281,3.0,1753.3,1752.9,7.378]
[1746022125482,3.0,1753.3,1752.8,0.6858]
[1746022125655,3.0,1753.3,1752.5,7.377]
[1746022125656,5.7046618,1753.0,1752.5,8.0628]
[1746022125850,0.42634649,1753.0,1752.5,8.0628]
[1746022126074,8.7039366,1753.2,1752.5,8.0628]
[1746022126391,5.70451002,1753.0,1752.5,9.50321689]
[1746022126553,5.70451002,1753.0,1752.5,8.0628]
[1746022126754,5.70551429,1752.7,1752.3,18.876]
[1746022126996,5.70581484,1752.6,1752.3,18.876]
[1746022127183,6.01940953,1752.6,1752.2,0.692553]
[1746022127488,11.72547353,1752.6,1752.2,0.692553]
[1746022127694,0.31359469,1752.6,1752.2,0.692553]
[1746022127896,0.31359469,1752.6,1752.2,1.4995083]
[1746022128262,0.31359469,1752.5,1752.2,1.4995083]
[1746022128896,0.31359469,1752.7,1752.2,1.4995083]
[1746022130055,7.20815893,1753.6,1752.6,0.6858]
[1746022130388,3.0,1753.4,1752.7,7.378]
[1746022130559,5.70418895,1753.1,1752.6,8.0638]
[1746022130765,6.0,1753.2,1752.6,8.0638]
[1746022130988,6.0,1753.2,1752.6,7.378]
[1746022130989,5.70499373,1752.9,1752.6,7.378]
[1746022131185,5.70483199,1752.9,1752.4,8.0628]
[1746022131390,3.0,1752.9,1752.4,0.6858]
[1746022131574,5.70414891,1753.2,1752.4,1.49208]
[1746022131761,3.0,1753.1,1752.4,1.49208]
[1746022131963,5.70387946,1753.2,1752.4,1.49208]
[1746022131964,3.0,1753.2,1752.4,1.49208]
[1746022132388,8.70388665,1753.2,1752.4,1.49208]
[1746022132893,3.0,1753.2,1752.4,1.49208]
[1746022133107,6.12295918,1753.5,1752.5,0.6858]
[1746022133306,0.41993443,1753.5,1752.6,6.34136893]
[1746022133463,8.70336165,1753.4,1752.5,0.6858]
[1746022133665,2.36143093,1753.7,1752.5,7.02716893]
[1746022133890,5.70281617,1753.6,1752.6,0.6858]
[1746022134309,5.70236358,1753.7,1752.8,0.6858]
[1746022134610,8.70273877,1753.6,1752.9,7.376]
[1746022134808,3.0,1753.6,1752.9,7.376]
[1746022134969,0.42169345,1753.7,1753.0,0.6858]
[1746022135167,3.0,1753.7,1753.0,0.6858]
[1746022135483,0.42937309,1753.8,1753.0,0.6858]
[1746022135689,5.70105852,1754.1,1753.2,0.6858]
[1746022135935,5.70136828,1754.0,1753.2,1.38851689]
[1746022136085,5.70073711,1754.2,1753.3,0.6858]
[1746022136282,3.0,1754.1,1753.4,7.376]
[1746022136607,6.13761634,1754.3,1753.5,0.6858]
[1746022136905,3.0,1754.2,1753.5,0.6858]
[1746022137414,10.846,1754.5,1753.5,0.6858]
[1746022137415,6.0,1754.5,1753.5,0.6858]
[1746022137616,5.70009706,1754.4,1753.5,0.6858]
[1746022137974,5.70076505,1754.2,1753.5,0.6858]
[1746022138269,5.70038911,1754.3,1753.5,0.6858]
[1746022138882,3.0,1754.3,1753.5,0.6858]
[1746022139315,5.70027931,1754.3,1753.5,0.6858]
[1746022139605,3.0,1754.3,1753.5,0.6858]
[1746022139770,5.70050029,1754.3,1753.5,0.6858]
[1746022140099,5.70097251,1754.1,1753.5,0.6858]
[1746022140272,9.017,1754.4,1753.5,0.6858]
[1746022140606,3.0,1754.1,1753.6,7.325]
[1746022140794,8.70107257,1754.1,1753.5,0.6858]
[1746022140968,5.70135131,1754.0,1753.6,7.324]
[1746022141379,3.0,1754.1,1753.7,7.324]
[1746022141578,9.12497373,1754.3,1753.7,7.324]
[1746022141780,3.42457279,1754.3,1753.7,7.324]
[1746022141965,7.20230757,1754.3,1753.6,8.0098]
[1746022142205,3.0,1754.1,1753.6,8.0098]
[1746022142505,5.70182761,1753.9,1753.6,8.0098]
[1746022142667,5.70182761,1753.9,1753.6,7.324]
[1746022142668,5.7020181,1753.8,1753.6,7.324]
[1746022143071,14.4028985,1754.0,1753.6,7.324]
[1746022143290,6.017,1754.1,1753.6,7.324]
[1746022143291,3.0,1754.1,1753.6,7.324]
[1746022143489,5.70105019,1754.1,1753.6,7.324]
[1746022144185,5.70174189,1753.9,1753.6,7.324]
[1746022144384,5.70208631,1753.8,1753.6,7.324]
[1746022144625,5.70208631,1753.8,1753.4,18.872]
[1746022144626,3.0,1753.7,1753.4,18.872]
[1746022144821,8.70280104,1753.6,1753.5,7.324]
[1746022145083,8.70255474,1753.6,1753.5,7.324]
[1746022145294,3.0,1753.6,1752.7,0.6858]
[1746022145515,5.70332653,1753.4,1752.7,0.6858]
[1746022145706,5.70332653,1753.4,1752.5,22.65861109]
[1746022145707,3.0,1753.5,1752.9,0.6858]
[1746022145905,3.0,1753.7,1752.9,0.6858]
[1746022146284,5.70244148,1753.7,1752.9,0.6858]
[1746022146490,0.42964173,1753.8,1753.0,8.06683339]
[1746022146686,3.0,1753.9,1753.1,0.6858]
[1746022147617,5.70074553,1754.2,1753.3,0.6858]
[1746022147820,0.42525883,1754.3,1753.4,0.74281962]
[1746022148124,5.69977245,1754.5,1753.6,0.6858]
[1746022148690,8.70040203,1754.3,1753.6,0.6858]
[1746022148996,3.43757107,1754.3,1753.6,0.6858]
[1746022149199,5.69900587,1754.7,1754.0,0.6858]
[1746022149533,5.69900587,1754.7,1754.1,7.324]
[1746022149691,11.71586413,1754.8,1754.1,7.324]
[1746022150129,3.0,1754.7,1754.1,7.324]
[1746022150430,6.44659887,1754.8,1754.1,7.324]
[1746022150594,3.0,1754.7,1754.1,7.324]
[1746022150921,0.89631399,1755.0,1754.2,0.6858]
[1746022151155,12.12195226,1755.1,1754.2,6.34136893]
[1746022151156,4.82821498,1755.1,1754.2,6.34136893]
[1746022151336,5.25524217,1755.1,1754.4,0.6858]
[1746022151536,0.42702719,1755.1,1754.4,0.6858]
[1746022151748,5.6970532,1755.3,1754.4,0.6858]
[1746022151942,5.69737013,1755.2,1754.4,0.6858]
[1746022152258,3.0,1755.1,1754.4,0.6858]
[1746022152757,5.69736305,1755.2,1754.4,0.6858]
[1746022153062,11.71436305,1755.2,1754.4,0.6858]
[1746022153261,3.0,1754.9,1754.4,0.6858]
[1746022153926,3.0,1754.9,1754.5,7.322]
[1746022154243,3.0,1755.1,1754.5,7.322]
[1746022154443,3.0,1755.2,1754.5,7.322]
[1746022154650,3.0,1755.2,1754.5,26.98278]
[1746022154826,3.0,1754.9,1754.5,26.182]
[1746022155027,8.69850712,1754.9,1754.5,26.182]
[1746022155324,8.69850712,1754.9,1754.6,7.321]
[1746022156262,5.69877141,1754.8,1754.6,7.321]
[1746022156640,8.69851318,1754.9,1754.6,6.5704]
[1746022157141,3.0,1754.9,1754.6,6.5704]
[1746022157748,8.69833604,1754.9,1754.6,6.5704]
[1746022158262,3.0,1754.9,1754.6,6.5704]
[1746022158464,6.52669294,1755.3,1754.7,0.65704]
[1746022158678,6.1341598,1755.3,1754.8,0.6858]
[1746022158972,5.69817234,1755.0,1754.8,0.6858]
[1746022159178,3.0,1754.9,1754.6,6.5704]
[1746022160073,8.69836159,1754.9,1754.6,6.5704]
[1746022160591,3.0,1754.9,1754.6,6.5704]
[1746022160735,6.53573411,1755.3,1754.6,6.5704]
[1746022161098,6.1341765,1755.3,1754.7,0.6858]
[1746022161376,3.43703256,1755.3,1754.7,0.6858]
[1746022161582,5.6972919,1755.3,1754.7,0.6858]
[1746022161783,3.0,1755.3,1754.7,1.41142]
[1746022161943,5.69654954,1755.5,1754.7,1.41142]
[1746022162143,5.69620019,1755.6,1754.7,1.41142]
[1746022162144,5.69625822,1755.6,1754.8,0.6858]
[1746022162342,11.77650676,1755.6,1754.8,0.6858]
[1746022162543,8.69651988,1755.5,1754.8,0.6858]
[1746022162777,3.0,1755.5,1754.8,0.5917]
[1746022163158,8.69638832,1755.5,1754.8,0.5917]
[1746022163344,5.69638832,1755.5,1754.8,0.5917]
[1746022163549,3.0,1755.4,1754.8,0.5917]
[1746022163750,3.43238086,1755.4,1754.8,0.5917]
[1746022164277,0.38393414,1755.6,1754.7,0.78259135]
[1746022164579,6.017,1755.7,1754.7,3.78259135]
[1746022164764,5.69546117,1755.8,1754.8,0.37825914]
[1746022164972,3.0,1755.7,1754.8,0.37825914]
[1746022165478,9.017,1755.7,1754.8,0.37825914]
[1746022165786,14.71278927,1755.7,1754.9,0.5917]
[1746022166110,11.71314653,1755.6,1754.9,0.5917]
[1746022166511,6.017,1755.6,1754.9,0.6486668]
[1746022166811,9.44810093,1755.7,1754.9,0.5917]
[1746022167322,3.43110093,1755.7,1754.9,0.5917]
[1746022167511,1.6466,1756.0,1755.0,0.05696265]
[1746022167512,5.69496705,1756.0,1755.0,0.05696265]
[1746022167829,3.0,1755.8,1755.2,0.5917]
[1746022167995,6.09005167,1756.0,1755.2,0.5917]
[1746022167996,3.39508462,1756.0,1755.2,0.5917]
[1746022168313,9.08988496,1756.0,1755.2,0.5917]
[1746022168830,6.017,1755.6,1755.2,0.5917]
[1746022169184,8.69513123,1755.9,1755.2,0.5917]
[1746022169516,3.0,1755.6,1755.2,0.5917]
[1746022169716,9.017,1755.5,1755.2,7.8487]
[1746022170016,3.0,1755.7,1755.2,7.8487]
[1746022170217,3.0,1755.8,1755.2,7.8487]
[1746022170396,8.69557033,1755.8,1755.2,7.8487]
[1746022170598,3.0,1755.8,1755.2,7.8487]
[1746022170785,3.0,1755.9,1755.4,0.5917]
[1746022170985,3.0,1755.9,1755.3,0.05695877]
[1746022170986,0.89631399,1756.4,1755.6,0.5917]
[1746022171289,0.89631399,1756.4,1755.8,0.5917]
[1746022171290,0.43225739,1756.4,1755.8,0.5917]
[1746022171510,10.52074933,1756.7,1755.9,7.256]
[1746022171713,3.0,1756.3,1755.9,7.256]
[1746022171903,11.71079256,1756.3,1755.9,7.256]
[1746022172104,6.91331399,1756.3,1755.9,7.256]
[1746022172324,9.017,1756.2,1755.9,7.256]
[1746022172619,5.69331246,1756.5,1755.9,7.256]
[1746022172800,3.0,1756.2,1755.9,7.256]
[1746022174019,9.84645002,1756.4,1755.9,7.256]
[1746022174226,15.10281381,1756.4,1755.9,7.256]
[1746022174453,9.017,1756.2,1755.8,0.5917]
[1746022174639,9.017,1756.0,1755.8,7.8467]
[1746022174839,3.0,1756.1,1755.8,7.8467]
[1746022175040,9.017,1756.1,1755.8,7.8467]
[1746022175248,3.0,1756.3,1755.8,7.8467]
[1746022175577,3.38810788,1756.4,1755.8,7.8467]
[1746022175872,5.69325895,1756.5,1755.8,7.8467]
[1746022176165,0.84022178,1756.5,1755.9,0.05693961]
[1746022176330,7.29170714,1756.6,1755.8,7.8467]
[1746022176532,4.5987,1756.6,1755.8,7.8467]
[1746022176740,10.29173549,1756.6,1755.8,7.8467]
[1746022177067,10.69317906,1756.6,1755.8,8.63137]
[1746022177248,3.0,1756.4,1755.8,8.63137]
[1746022178143,0.40144357,1756.6,1755.9,0.5917]
[1746022178480,3.0,1756.6,1755.9,0.64862662]
[1746022178832,3.0,1756.6,1755.9,0.5917]
[1746022179371,0.3877941,1756.7,1755.9,0.5917]
[1746022179549,3.0,1756.8,1755.9,0.5917]
[1746022179750,5.69196546,1756.9,1756.1,0.5917]
[1746022179751,3.0,1756.9,1756.1,0.5917]
[1746022179951,0.43671568,1757.0,1756.2,0.64862218]
[1746022180152,5.69087184,1757.2,1756.4,0.5917]
[1746022180466,3.0,1757.1,1756.4,0.5917]
[1746022180669,9.1115739,1757.1,1756.4,0.5917]
[1746022180966,3.0,1756.9,1756.4,0.5917]
[1746022181136,3.0,1757.0,1756.4,0.5917]
[1746022181341,8.69163488,1757.0,1756.4,0.5917]
[1746022181862,9.40538244,1757.0,1756.4,0.5917]
[1746022182042,3.0,1756.8,1756.4,0.5917]
[1746022182429,0.38687163,1757.0,1756.4,0.5917]
[1746022182629,5.69120481,1757.1,1756.4,0.5917]
[1746022182842,0.3851468,1757.1,1756.4,0.5917]
[1746022183062,12.85625076,1757.4,1756.4,0.78447]
[1746022183239,5.6912133,1757.1,1756.5,0.5917]
[1746022183429,3.0,1757.0,1756.5,0.5917]
[1746022183632,3.41794101,1757.1,1756.5,0.5917]
[1746022183832,0.41794101,1757.1,1756.5,0.64861641]
[1746022184029,5.69037178,1757.4,1756.5,0.5917]
[1746022184231,8.69056319,1757.3,1756.5,0.5917]
[1746022184433,15.09612427,1757.4,1756.5,0.5917]
[1746022184642,5.69131148,1757.1,1756.5,0.5917]
[1746022184831,3.0,1757.0,1756.5,0.5917]
[1746022185431,8.69155424,1757.0,1756.5,0.5917]
[1746022185648,3.0,1757.0,1756.6,7.251]
[1746022185846,0.42483109,1757.1,1756.6,7.251]
[1746022186075,9.017,1757.1,1756.6,7.251]
[1746022186270,3.0,1756.7,1756.6,7.251]
[1746022186572,3.0,1756.9,1756.5,7.8427]
[1746022186779,5.69219556,1756.8,1756.5,7.8427]
[1746022186950,3.0,1756.7,1756.5,7.8427]
[1746022187471,5.69219556,1756.8,1756.5,7.8427]
[1746022187472,3.0,1756.8,1756.5,7.8427]
[1746022187670,3.0,1756.9,1756.5,7.8427]
[1746022188461,3.0,1757.0,1756.5,7.8427]
[1746022188682,3.42889667,1757.1,1756.5,8.62697]
[1746022188843,8.69122078,1757.1,1756.5,8.62697]
[1746022189542,6.017,1757.0,1756.5,8.62697]
[1746022190580,11.70867807,1757.0,1756.5,8.62697]
[1746022190757,11.70919426,1756.8,1756.5,7.8427]
[1746022190960,6.017,1756.8,1756.5,7.8427]
[1746022191843,11.70939955,1756.8,1756.5,7.8427]
[1746022192042,11.7104639,1756.4,1756.3,18.837]
[1746022192244,3.0,1756.3,1756.0,7.25]
[1746022192453,9.017,1756.3,1756.0,7.25]
[1746022192967,6.017,1756.1,1756.0,7.25]
[1746022193492,5.69489463,1756.0,1755.6,18.832]
[1746022193653,9.017,1755.9,1755.8,7.25]
[1746022193985,6.017,1756.0,1755.8,7.25]
[1746022194184,0.42643399,1756.3,1755.8,7.975]
[1746022194391,3.0,1756.5,1755.8,7.975]
[1746022194684,8.69334635,1756.5,1755.8,7.975]
[1746022194887,3.0,1756.3,1755.8,7.975]
[1746022195061,3.0,1756.3,1756.0,0.3097]
[1746022195262,7.90483474,1757.0,1756.0,0.3097]
[1746022195263,5.69184868,1756.9,1756.0,0.3097]
[1746022195674,5.69232925,1756.8,1756.0,0.3097]
[1746022195852,14.70949272,1756.7,1756.0,0.3097]
[1746022196225,14.70976197,1756.7,1756.0,0.3097]
[1746022196524,20.40256384,1756.7,1756.0,0.3097]
[1746022196688,3.0,1756.4,1756.0,0.3097]
[1746022197229,9.44553106,1756.4,1756.0,0.3097]
[1746022197432,15.13900108,1756.4,1756.1,7.251]
[1746022197723,9.44553106,1756.4,1756.1,7.251]
[1746022198229,3.42853106,1756.4,1756.1,7.251]
[1746022198441,0.42853106,1756.4,1756.1,7.251]
[1746022198745,3.0,1756.5,1756.1,7.251]
[1746022199202,9.017,1756.5,1756.1,7.251]
[1746022199743,9.45139796,1756.5,1756.1,7.251]
[1746022200307,0.43439796,1756.5,1756.1,7.251]
[1746022200539,9.017,1756.6,1756.1,7.251]
[1746022200703,3.0,1756.4,1756.1,7.251]
[1746022200908,3.0,1756.4,1755.7,0.3097]
[1746022200909,3.0,1756.1,1755.7,0.3097]
[1746022201139,3.0,1756.2,1755.7,7.4927]
[1746022201316,1.5058,1756.5,1755.7,7.4927]
[1746022201514,0.31418982,1756.4,1755.9,0.3097]
[1746022202510,0.31418982,1756.3,1755.9,0.3097]
[1746022203348,0.31418982,1756.2,1755.9,0.3097]
[1746022204845,0.31418982,1756.3,1755.9,0.3097]
[1746022205047,0.31418982,1756.3,1755.9,0.36663211]
[1746022205531,3.31418982,1756.3,1755.9,0.3097]
[1746022206390,9.33118982,1756.3,1756.0,7.183]
[1746022206563,0.31418982,1756.2,1756.0,7.183]
[1746022207534,0.31418982,1756.3,1756.1,0.3097]
[1746022207736,0.31418982,1756.3,1756.1,0.36662977]
[1746022207961,4.3359375,1756.4,1756.2,0.3097]
[1746022208279,9.45513021,1756.8,1756.2,0.3097]
[1746022208645,9.017,1756.8,1756.2,0.3097]
[1746022209275,3.0,1756.7,1756.2,0.3097]
[1746022210467,0.43436392,1756.8,1756.2,0.36662757]
[1746022210679,11.70901305,1756.9,1756.2,0.3097]
[1746022210967,9.017,1756.8,1756.2,0.3097]
[1746022212170,9.45093593,1756.8,1756.2,0.3097]
[1746022212631,3.43393593,1756.8,1756.3,0.05692593]
[1746022212794,0.43393593,1756.8,1756.4,0.3097]
[1746022213118,11.38151117,1757.3,1756.5,7.182]
[1746022213282,3.0,1757.1,1756.7,0.3097]
[1746022213478,8.69127479,1757.1,1756.7,0.3097]
[1746022213683,14.70827479,1757.1,1756.7,0.3097]
[1746022214123,9.017,1757.1,1756.7,0.3097]
[1746022214286,3.0,1756.9,1756.7,0.3097]
[1746022215239,3.0,1756.7,1756.5,7.4917]
[1746022215843,9.017,1756.7,1756.0,0.3097]
[1746022215992,3.0,1756.2,1755.8,7.182]
[1746022216192,3.0,1756.0,1755.8,7.182]
[1746022216999,3.41721343,1756.0,1755.8,7.182]
[1746022217213,5.69338052,1756.5,1755.8,7.182]
[1746022217214,1.6183,1756.6,1755.8,8.31053111]
[1746022217533,3.0,1756.6,1755.9,0.3097]
[1746022217901,8.69305101,1756.6,1755.9,0.3097]
[1746022218135,5.69318453,1756.5,1755.9,0.3097]
[1746022218431,9.017,1756.4,1755.9,0.3097]
[1746022218628,9.43981907,1756.4,1755.9,0.3097]
[1746022218827,3.0,1756.2,1755.9,0.3097]
[1746022219196,9.017,1756.2,1755.9,0.3097]
[1746022219404,3.0,1756.1,1755.8,7.182]
[1746022219823,3.0,1756.0,1755.8,6.78356591]
[1746022220012,3.31464145,1756.0,1755.8,6.30662084]
[1746022220517,14.71208514,1755.9,1755.8,5.16613868]
[1746022221018,15.02672659,1755.9,1755.8,5.16613868]
[1746022221226,9.33164145,1755.9,1755.8,5.16613868]
[1746022221601,15.02672659,1755.9,1755.8,5.00613868]
[1746022221797,5.69618144,1755.6,1755.4,7.183]
[1746022222027,3.0,1755.6,1755.4,6.3733584]
[1746022222241,14.71292468,1755.7,1755.1,3.79361109]
[1746022222533,6.017,1755.6,1755.1,10.97661109]
[1746022222739,6.017,1755.6,1755.1,1.61981053]
[1746022222740,16.21565642,1755.2,1755.1,1.61981053]
[1746022223047,3.0,1754.9,1754.6,12.10766451]
[1746022223230,5.69882161,1754.8,1754.6,12.10766451]
[1746022223403,3.0,1754.9,1754.6,12.10766451]
[1746022223404,8.69844147,1754.9,1754.6,12.10766451]
[1746022223609,0.31464145,1754.8,1754.6,12.04284095]
[1746022223941,0.31464145,1754.8,1754.6,11.01744178]
[1746022224500,0.31464145,1754.7,1754.6,11.01744178]
[1746022225439,3.0,1754.7,1754.6,11.01744178]
[1746022225598,3.0,1754.7,1754.6,10.67955789]
[1746022225800,8.69897988,1754.7,1754.6,10.67955789]
[1746022226109,3.0,1754.7,1754.6,3.83444178]
[1746022226710,0.42248033,1754.9,1754.6,3.83444178]
[1746022226911,7.35976433,1755.5,1754.7,7.185]
[1746022227134,3.31221831,1755.4,1754.7,7.185]
[1746022227314,0.31221831,1755.4,1754.7,7.185]
[1746022227503,0.31221831,1755.4,1754.8,0.77547072]
[1746022227705,0.31221831,1755.4,1754.9,0.05696788]
[1746022227901,0.37928602,1755.6,1754.8,0.7185]
[1746022227902,5.69641704,1755.5,1754.8,0.7185]
[1746022228147,5.69699352,1755.4,1754.7,7.185]
[1746022228355,3.0,1755.3,1754.7,7.185]
[1746022228838,3.0,1755.1,1754.7,7.185]
[1746022229032,8.69724418,1755.3,1754.7,7.185]
[1746022229235,3.0,1755.2,1754.7,7.185]
[1746022229438,3.0,1754.8,1754.7,7.185]
[1746022229598,3.0,1754.8,1754.3,7.115]
[1746022229803,8.69853143,1754.9,1754.3,7.115]
[1746022230028,3.0,1755.0,1754.3,7.115]
[1746022230342,3.0,1754.8,1754.3,7.8265]
[1746022230545,7.29627577,1754.9,1754.3,7.115]
[1746022230730,3.0,1754.9,1754.3,7.17199205]
[1746022231082,4.5978,1755.1,1754.3,7.115]
[1746022231231,3.0,1755.1,1754.4,0.7115]
[1746022231435,3.0,1755.2,1754.5,0.22565746]
[1746022231655,1.6522,1755.3,1754.4,0.7115]
[1746022231854,5.69653248,1755.5,1754.4,0.7115]
[1746022232045,13.88248431,1755.6,1754.5,0.27871993]
[1746022232244,3.0,1755.4,1754.5,0.27871993]
[1746022232446,3.43546369,1755.4,1754.5,0.27871993]
[1746022233370,9.1321759,1755.4,1754.5,0.27871993]
[1746022233681,9.13221669,1755.4,1754.5,0.27871993]
[1746022233881,3.43546369,1755.4,1754.5,0.27871993]
[1746022234172,3.0,1755.2,1754.5,0.27871993]
[1746022234472,6.017,1755.1,1754.5,0.22174193]
[1746022234642,6.017,1754.9,1754.5,0.22174193]
[1746022234838,6.017,1755.0,1754.4,0.0569812]
[1746022235034,6.017,1755.0,1754.5,0.17884066]
[1746022235236,6.017,1755.0,1754.3,7.1719796]
[1746022235590,3.0,1754.9,1754.4,0.17884066]
[1746022235748,11.71662952,1754.5,1754.0,0.006746]
[1746022236082,11.71662952,1754.5,1753.8,7.116]
[1746022236083,6.017,1754.1,1753.8,7.116]
[1746022236313,3.0,1754.0,1753.8,7.116]
[1746022236865,14.71832641,1754.0,1753.8,7.116]
[1746022237068,14.71857933,1753.9,1753.4,25.964]
[1746022237274,14.71923078,1753.7,1753.4,25.964]
[1746022237472,9.017,1753.7,1753.4,7.117]
[1746022237970,3.0,1753.4,1752.9,11.96368807]
[1746022238178,9.017,1753.4,1752.9,11.96368807]
[1746022238468,3.42269399,1753.4,1752.9,11.96368807]
[1746022238671,3.42269399,1753.4,1753.0,1.19636881]
[1746022238876,9.43969399,1753.4,1752.9,11.16270807]
[1746022239571,0.42269399,1753.4,1752.9,11.16270807]
[1746022239778,8.70274719,1753.6,1752.9,11.16270807]
[1746022241276,3.0,1753.6,1752.9,11.16270807]
[1746022241480,8.70304382,1753.5,1752.9,7.117]
[1746022241649,3.0,1753.5,1752.9,7.117]
[1746022241852,0.42286545,1753.5,1752.9,7.117]
[1746022242173,8.70317865,1753.5,1752.9,7.117]
[1746022242340,5.70325453,1753.4,1752.9,7.117]
[1746022242554,3.0,1753.3,1752.9,7.117]
[1746022242762,8.70374537,1753.3,1752.9,7.117]
[1746022243669,3.0,1753.3,1752.9,7.117]
[1746022243941,3.0,1753.3,1753.0,0.15998184]
[1746022243942,8.70376231,1753.3,1753.0,0.15998184]
[1746022244151,3.0,1753.3,1753.0,0.15998184]
[1746022244354,3.43148136,1753.5,1752.7,0.05704381]
[1746022244576,9.13451737,1753.5,1753.1,0.15998184]
[1746022244875,8.70336305,1753.4,1752.6,7.12]
[1746022245087,5.70386777,1753.2,1752.7,0.15998184]
[1746022245255,3.0,1753.2,1752.7,0.15998184]
[1746022245661,3.0,1753.3,1752.7,0.15998184]
[1746022245860,9.13162516,1753.5,1752.7,0.15998184]
[1746022246063,0.42869512,1753.5,1752.8,0.05703607]
[1746022246266,0.37149857,1753.8,1752.8,0.05703607]
[1746022246468,5.70255461,1753.7,1752.9,0.15998184]
[1746022246690,5.70255461,1753.7,1752.7,0.05702825]
[1746022246991,11.77437632,1753.8,1752.8,0.15998184]
[1746022247145,5.70242792,1753.7,1752.8,0.15998184]
[1746022247345,8.70236461,1753.7,1752.8,0.15998184]
[1746022247566,3.0,1753.7,1752.8,0.15998184]
[1746022247848,8.7022406,1753.7,1752.8,0.15998184]
[1746022248048,5.70249162,1753.7,1752.8,0.15998184]
[1746022248279,3.0,1753.5,1752.8,0.15998184]
[1746022248483,5.70249162,1753.7,1752.8,0.15998184]